bitfinex/quotes_ETHUSD_20250411
["timestamp","ask_amount","ask_price","bid_price","bid_amount"]
[1744380487272,13.30071405,1565.2,1564.7,9.39084]
[1744380487583,0.4427,1565.2,1564.9,6.39017]
[1744380487897,0.05,1565.4,1565.2,6.38895]
[1744380488055,6.43817,1565.4,1565.2,9.833]
[1744380488256,0.07986264,1565.3,1565.2,9.833]
[1744380488604,0.12986494,1565.4,1565.2,9.833]
[1744380488759,0.05,1565.4,1565.2,9.833]
[1744380489258,0.05,1565.4,1565.2,16.22184]
[1744380489500,0.05,1565.4,1565.2,9.833]
[1744380490583,0.05,1565.4,1565.3,6.38855]
[1744380491286,0.05,1565.4,1565.3,6.97530598]
[1744380491453,0.4927,1565.4,1564.7,22.3583173]
[1744380491654,0.07986858,1565.3,1565.0,6.38958]
[1744380492085,0.07986858,1565.3,1564.8,9.39048]
[1744380492258,6.46855858,1565.3,1564.8,9.39047]
[1744380492460,6.46855858,1565.3,1564.9,6.39018]
[1744380492683,0.07986858,1565.3,1564.9,6.39005]
[1744380492884,0.07986858,1565.3,1565.1,6.1345373]
[1744380493253,6.46853858,1565.3,1565.1,6.1345373]
[1744380494286,6.46853858,1565.3,1565.0,9.833]
[1744380494488,6.46853858,1565.3,1565.0,16.22265]
[1744380494489,0.07986919,1565.3,1565.0,16.22265]
[1744380494712,6.88094,1565.4,1565.0,9.833]
[1744380494713,6.38936,1565.1,1565.0,9.833]
[1744380494857,6.83278,1565.0,1564.8,6.1345373]
[1744380495190,6.47006332,1564.9,1564.8,6.1345373]
[1744380496493,16.00276332,1564.9,1564.8,6.1345373]
[1744380496672,15.92288,1564.9,1564.8,6.1345373]
[1744380496868,6.8337,1564.7,1564.3,6.19765046]
[1744380497097,6.39222,1564.5,1564.3,6.19765046]
[1744380497268,0.0799076,1564.7,1564.5,6.39172]
[1744380497473,6.39023,1564.9,1564.6,9.82]
[1744380497672,13.30267743,1565.0,1564.5,12.78337]
[1744380497860,13.22279,1565.0,1564.7,9.82]
[1744380498066,0.4427,1565.0,1564.7,16.21093]
[1744380498268,0.52258034,1565.0,1564.7,16.21093]
[1744380498586,13.30242034,1565.0,1564.7,9.82]
[1744380498892,0.4427,1565.0,1564.7,9.82]
[1744380499092,6.39059,1564.8,1564.7,9.82]
[1744380499297,6.39126,1564.7,1564.3,17.63305046]
[1744380499590,6.39126,1564.7,1564.3,9.82]
[1744380499591,6.47154236,1564.6,1564.3,9.82]
[1744380499792,0.07990227,1564.7,1564.3,16.2125]
[1744380500095,0.07990227,1564.7,1564.4,6.39213]
[1744380500266,0.07990227,1564.7,1564.3,16.2125]
[1744380500463,0.05,1565.4,1565.0,6.38948]
[1744380500671,0.05,1565.4,1565.1,16.20923]
[1744380500973,0.05,1565.4,1565.1,22.59846]
[1744380501177,0.05,1565.4,1565.1,16.20923]
[1744380501377,0.05,1565.4,1565.2,6.38876]
[1744380501599,0.05,1565.4,1565.1,9.82]
[1744380501798,0.09303433,1565.4,1565.1,9.82]
[1744380501975,0.05,1565.4,1565.1,9.82]
[1744380502181,0.05,1565.4,1565.2,6.3888]
[1744380502390,0.05,1565.4,1565.1,17.19135]
[1744380502706,0.05,1565.4,1565.1,16.20923]
[1744380503011,6.38876,1565.3,1564.9,6.39011]
[1744380503215,6.88092,1565.4,1564.9,6.39005]
[1744380503510,0.4927,1565.4,1565.0,6.38969]
[1744380503673,6.43160433,1565.3,1564.9,6.38988]
[1744380503869,6.43160433,1565.3,1564.9,6.39011]
[1744380504169,0.04303433,1565.3,1564.9,6.39003]
[1744380504404,0.04303433,1565.3,1564.9,12.78008]
[1744380504670,0.05,1565.4,1565.1,6.38921]
[1744380504891,0.09303433,1565.4,1564.9,6.39009]
[1744380505103,6.3892,1565.2,1564.8,9.82]
[1744380505308,6.43255433,1565.1,1564.8,9.82]
[1744380505519,0.04303433,1565.1,1564.8,9.82]
[1744380505727,0.04303433,1565.2,1564.8,16.21044]
[1744380506073,0.04303433,1565.2,1564.8,22.60087]
[1744380506274,0.04303433,1565.2,1564.9,6.39005]
[1744380506468,0.04303433,1565.2,1565.0,9.819]
[1744380507079,6.43222433,1565.2,1565.0,9.819]
[1744380507280,0.04303433,1565.2,1565.0,9.819]
[1744380507476,12.82140433,1565.2,1565.0,9.819]
[1744380507680,6.38936,1565.1,1565.0,9.819]
[1744380507883,6.38999,1565.0,1564.6,9.819]
[1744380508080,0.04303433,1564.9,1564.6,16.2104]
[1744380508284,0.04303433,1564.9,1564.6,9.819]
[1744380508586,6.13303433,1565.1,1564.8,6.39044]
[1744380509107,6.09,1565.1,1564.7,6.39091]
[1744380509290,6.09,1565.1,1564.7,12.78176]
[1744380509491,6.09,1565.1,1564.6,10.30660393]
[1744380509492,6.09,1565.1,1564.8,6.45440776]
[1744380509805,6.09,1565.1,1564.7,12.78178]
[1744380510015,6.09,1565.1,1564.7,6.39087]
[1744380510206,6.09,1565.1,1564.8,6.39044]
[1744380510407,6.09,1565.1,1564.8,12.78091]
[1744380510604,6.09,1565.1,1564.8,6.39044]
[1744380510774,6.09,1565.1,1564.8,12.78091]
[1744380510978,6.09,1565.1,1564.8,16.20944]
[1744380511494,6.09,1565.1,1564.8,9.819]
[1744380511691,13.26563433,1565.0,1564.8,9.819]
[1744380511873,6.39018,1564.9,1564.8,9.819]
[1744380512522,0.4427,1565.0,1564.7,16.21098]
[1744380512702,0.48573433,1565.0,1564.7,16.21087]
[1744380512924,7.34220743,1565.1,1564.8,6.39055]
[1744380512925,6.09,1565.1,1564.8,6.39055]
[1744380513127,6.09,1565.1,1564.9,6.39006]
[1744380513330,0.4427,1564.8,1564.3,11.361]
[1744380513623,6.39158,1564.6,1564.3,9.82]
[1744380513774,6.43485433,1564.5,1564.3,9.82]
[1744380513971,6.39222,1564.4,1564.3,9.82]
[1744380514174,6.43485433,1564.5,1564.3,9.82]
[1744380514375,6.43406433,1564.7,1564.3,9.82]
[1744380514598,6.39158,1564.6,1564.3,9.82]
[1744380514804,7.12181076,1564.7,1564.3,9.82]
[1744380515102,6.39157,1564.6,1564.3,9.82]
[1744380515301,0.04303433,1564.5,1564.3,16.21252]
[1744380515502,13.47016643,1564.7,1564.2,49.805]
[1744380515503,6.43460433,1564.6,1564.2,56.19792]
[1744380515804,12.92462,1564.5,1564.2,49.805]
[1744380516003,0.04303433,1564.4,1564.2,49.805]
[1744380516578,6.43528433,1564.4,1564.2,49.805]
[1744380516772,6.43528433,1564.4,1564.0,9.821]
[1744380516978,12.78563,1564.3,1564.0,9.821]
[1744380517310,6.43607433,1564.2,1564.0,9.821]
[1744380517480,6.43607433,1564.2,1563.7,4.5194]
[1744380517677,6.39419,1564.0,1563.7,9.822]
[1744380517878,0.48573433,1564.1,1563.7,9.822]
[1744380518078,6.87918433,1564.1,1563.7,9.822]
[1744380518573,1.17365276,1564.1,1563.6,9.822]
[1744380518780,12.96952433,1564.1,1563.6,9.822]
[1744380518978,6.13303433,1564.1,1563.7,1.6565]
[1744380519201,6.09,1564.1,1563.7,4.6565]
[1744380519385,6.09,1564.1,1563.8,0.06393781]
[1744380519585,6.09,1564.1,1563.7,4.6565]
[1744380519795,6.09,1564.1,1563.8,0.46565]
[1744380519995,6.09,1564.1,1563.8,0.52958781]
[1744380520799,12.48366,1564.1,1563.7,9.00324057]
[1744380521008,6.39396,1564.0,1563.7,9.00324057]
[1744380521313,6.39396,1564.0,1563.7,9.00324587]
[1744380521691,12.52655433,1564.1,1563.7,8.93930277]
[1744380521692,6.09,1564.1,1563.7,8.93930277]
[1744380521884,6.3941,1564.0,1563.7,10.81543305]
[1744380522080,0.4427,1563.9,1563.6,3.0]
[1744380522392,6.39524,1563.7,1563.6,9.823]
[1744380522976,6.39631,1563.4,1563.2,1.44901]
[1744380523178,6.39631,1563.4,1563.0,1.5138]
[1744380523179,6.3969,1563.3,1563.0,1.5138]
[1744380523411,0.04303433,1563.4,1563.0,1.5138]
[1744380523612,12.52906433,1563.5,1563.0,5.79660277]
[1744380523819,6.3946,1563.9,1563.4,4.28280277]
[1744380524019,0.04303433,1564.1,1563.5,3.06395048]
[1744380524216,6.39532,1563.7,1563.3,1.6478]
[1744380524395,0.04303433,1564.1,1563.4,3.0]
[1744380524396,6.3947,1563.8,1563.4,3.0]
[1744380524596,6.39553,1563.6,1563.3,4.6478]
[1744380524798,6.39553,1563.6,1563.3,5.54086028]
[1744380525183,12.79118,1563.6,1563.3,5.60481815]
[1744380525519,6.39608,1563.5,1563.4,9.825]
[1744380525889,6.3955,1563.6,1563.4,9.825]
[1744380526990,6.3959,1563.5,1563.4,9.825]
[1744380527423,6.39705,1563.3,1563.0,11.4132]
[1744380527633,6.39738,1563.2,1563.0,11.4132]
[1744380527796,6.39754,1563.1,1563.0,1.6012]
[1744380527995,6.39754,1563.1,1563.0,11.4132]
[1744380528614,6.39754,1563.1,1563.0,9.812]
[1744380529002,0.04303433,1563.3,1563.0,10.95327]
[1744380529200,12.79374,1563.3,1563.0,10.95327]
[1744380529425,12.83761433,1563.2,1563.0,9.812]
[1744380529720,6.39754,1563.1,1562.9,1.6007]
[1744380529919,6.43995433,1563.3,1562.9,11.4137]
[1744380530108,6.44018433,1563.2,1562.9,11.4137]
[1744380530292,0.04303433,1563.2,1562.9,11.4137]
[1744380530493,6.39766,1563.1,1562.9,11.4137]
[1744380530689,0.04303433,1563.3,1562.9,11.4137]
[1744380531191,6.43977433,1563.3,1562.9,11.4137]
[1744380531989,0.04303433,1563.3,1562.9,17.60194697]
[1744380532194,0.04303433,1563.5,1563.0,0.55]
[1744380532698,6.09,1563.6,1563.1,0.0639655]
[1744380532899,0.04303433,1563.6,1563.1,0.85364233]
[1744380533221,6.39592,1563.5,1563.1,0.78967683]
[1744380533725,6.43870433,1563.6,1563.1,0.78967683]
[1744380533922,6.43855433,1563.6,1563.3,1.6351]
[1744380534127,12.83433433,1563.6,1563.3,1.6351]
[1744380534300,6.39591,1563.5,1563.3,1.6351]
[1744380534506,12.79202,1563.5,1563.1,3.0]
[1744380534823,6.39591,1563.5,1563.1,3.94633028]
[1744380535033,6.39603,1563.5,1563.1,3.94633028]
[1744380535228,6.43935433,1563.4,1563.1,3.0]
[1744380535402,6.39606,1563.5,1563.1,3.0]
[1744380535724,6.39684,1563.3,1563.0,1.6305]
[1744380536422,6.39561,1563.6,1563.1,0.06397409]
[1744380536627,6.39605,1563.5,1563.0,9.46330277]
[1744380536827,6.39605,1563.5,1563.1,1.01029375]
[1744380537023,6.39555,1563.6,1563.1,1.01029375]
[1744380537320,6.39599,1563.5,1563.1,0.94633028]
[1744380537531,6.39642,1563.4,1563.1,0.94633028]
[1744380537823,6.39599,1563.5,1563.1,1.0102962]
[1744380537998,6.39599,1563.5,1563.1,0.94633028]
[1744380538194,6.39633,1563.4,1563.1,0.94633028]
[1744380538699,12.79297,1563.4,1563.1,0.94633028]
[1744380539121,6.39633,1563.4,1563.1,0.94633028]
[1744380539298,6.39632,1563.4,1563.1,0.94633028]
[1744380539499,6.39754,1563.1,1563.0,1.6305]
[1744380539818,6.39795,1563.0,1562.9,9.815]
[1744380540016,6.44098433,1563.0,1562.9,9.815]
[1744380540930,6.39795,1563.0,1562.9,9.815]
[1744380541125,6.39836,1562.9,1562.8,49.829]
[1744380541332,6.39959,1562.6,1562.5,11.4045]
[1744380541499,12.48837,1562.9,1562.5,11.4045]
[1744380541831,6.39959,1562.6,1562.5,9.815]
[1744380542002,6.44262433,1562.6,1562.5,9.815]
[1744380542202,7.17424605,1562.6,1562.5,9.815]
[1744380542423,6.44262433,1562.6,1562.5,9.815]
[1744380542628,6.88532433,1562.6,1562.5,9.815]
[1744380542833,6.40099,1562.3,1562.1,49.91]
[1744380543001,6.40122,1562.2,1562.1,49.91]
[1744380543327,6.40122,1562.2,1562.1,0.05]
[1744380543497,8.76854543,1562.2,1562.1,0.05]
[1744380543703,6.40122,1562.2,1562.1,0.05]
[1744380543922,20.90122,1562.2,1562.1,0.05]
[1744380546243,14.5,1562.2,1562.1,0.05]
[1744380546734,14.5,1562.2,1562.1,16.26963]
[1744380546909,6.09,1562.8,1562.2,1.5974]
[1744380547232,6.40015,1562.5,1562.2,1.5974]
[1744380547422,20.90052,1562.4,1562.1,9.868]
[1744380547604,14.5,1562.4,1562.2,0.06401143]
[1744380547801,14.5,1562.4,1562.1,16.26937]
[1744380548006,14.5,1562.4,1562.2,6.4011]
[1744380548202,14.5,1562.4,1562.2,8.73215057]
[1744380548399,6.3984,1562.9,1562.4,7.97545]
[1744380548614,12.84084433,1562.8,1562.4,7.97545]
[1744380548904,14.5,1562.7,1562.4,1.5752]
[1744380549104,14.5,1562.7,1562.6,6.39959]
[1744380549405,6.73034091,1563.3,1562.7,5.1497]
[1744380549406,6.09,1563.2,1562.7,5.1497]
[1744380549730,12.79202,1563.5,1563.1,6.39738]
[1744380549924,14.5,1563.4,1563.2,9.819]
[1744380550700,14.5,1563.4,1563.2,16.21607]
[1744380551043,6.39713,1563.2,1562.4,14.10080277]
[1744380551331,6.44093433,1563.1,1562.7,6.39883]
[1744380551530,6.88290433,1563.2,1562.8,6.39853]
[1744380551733,6.44020433,1563.2,1562.9,9.818]
[1744380551934,6.39646,1563.4,1563.0,6.39774]
[1744380552103,6.39646,1563.4,1562.9,11.4452]
[1744380552104,6.39729,1563.2,1562.9,11.4452]
[1744380552306,27.29545,1563.1,1562.9,9.818]
[1744380552604,20.89767,1563.1,1562.9,9.818]
[1744380552800,6.39795,1563.0,1562.9,9.818]
[1744380553504,6.3995,1562.7,1562.5,9.818]
[1744380553728,6.44262433,1562.6,1562.2,51.5217]
[1744380553931,6.40081,1562.3,1562.1,9.868]
[1744380554129,6.44425433,1562.2,1562.1,9.868]
[1744380554331,6.44425433,1562.2,1562.1,0.05]
[1744380554631,20.94425433,1562.2,1562.1,0.05]
[1744380554834,23.63572643,1562.2,1562.1,0.05]
[1744380555075,20.90122,1562.2,1562.1,0.05]
[1744380555952,21.34392,1562.2,1562.1,0.05]
[1744380556147,14.5,1562.2,1562.1,0.05]
[1744380556302,14.5,1562.2,1562.1,6.45163]
[1744380556803,14.5,1562.2,1562.1,0.05]
[1744380557012,20.90122,1562.2,1562.1,0.05]
[1744380557234,23.631442,1562.2,1562.1,0.05]
[1744380559360,23.320222,1562.2,1562.1,0.05]
[1744380559509,20.59,1562.2,1562.1,0.05]
[1744380559836,20.59,1562.2,1562.1,6.45163]
[1744380560010,20.59,1562.2,1562.1,0.05]
[1744380560825,14.5,1562.2,1562.1,6.45163]
[1744380561025,6.39716,1563.2,1562.3,6.40064]
[1744380561026,6.39921,1562.7,1562.3,6.40064]
[1744380561228,6.39921,1562.7,1562.3,16.20364]
[1744380561428,14.5,1562.6,1562.4,6.40037]
[1744380561611,6.44306433,1562.5,1562.3,9.803]
[1744380561812,14.5,1562.6,1562.3,9.803]
[1744380562123,14.5,1562.6,1562.3,17.39243]
[1744380562450,14.5,1562.6,1562.4,12.80047]
[1744380562646,14.5,1562.6,1562.4,6.40022]
[1744380562833,14.5,1562.6,1562.3,16.20372]
[1744380563034,6.39798,1563.0,1562.3,16.20372]
[1744380563035,6.5327,1563.2,1562.4,6.40027]
[1744380563335,0.04303433,1563.0,1562.8,6.39864]
[1744380563535,14.5,1563.0,1562.9,12.79634]
[1744380563844,14.5,1563.0,1562.8,23.240134]
[1744380564026,14.5,1563.0,1562.8,9.803]
[1744380564229,14.5,1563.0,1562.6,1.6575]
[1744380564230,0.04303433,1562.9,1562.6,24.25936]
[1744380564556,0.04303433,1562.9,1562.6,17.85991]
[1744380564724,20.8981,1563.0,1562.6,1.6575]
[1744380564725,14.5,1563.0,1562.6,1.6575]
[1744380564932,12.79874,1562.7,1562.4,1.6285]
[1744380565132,6.39918,1562.7,1562.4,1.6285]
[1744380565337,0.04303433,1562.9,1562.7,6.39902]
[1744380565655,6.3988,1562.8,1562.4,9.471805]
[1744380565857,0.04303433,1562.7,1562.6,9.803]
[1744380566061,0.04303433,1562.8,1562.6,9.803]
[1744380566345,6.44181433,1562.8,1562.6,9.803]
[1744380566847,6.39918,1562.7,1562.6,9.803]
[1744380567051,0.04303433,1562.8,1562.6,9.803]
[1744380567232,12.83999433,1562.9,1562.6,9.803]
[1744380567433,12.84002433,1562.9,1562.6,9.803]
[1744380567631,6.39903,1562.8,1562.6,9.803]
[1744380568034,6.44206433,1562.8,1562.4,12.80051]
[1744380568236,6.44202433,1562.8,1562.5,9.802]
[1744380568442,12.84098433,1562.8,1562.5,9.802]
[1744380568643,6.39927,1562.7,1562.5,9.802]
[1744380569038,12.79869,1562.7,1562.5,9.802]
[1744380569238,0.04303433,1562.8,1562.5,9.802]
[1744380569539,6.39931,1562.7,1562.5,9.802]
[1744380569729,6.44186433,1562.8,1562.5,9.802]
[1744380570056,0.04303433,1562.8,1562.5,16.20198]
[1744380570251,6.44201433,1562.8,1562.5,9.802]
[1744380570827,6.39919,1562.7,1562.5,9.802]
[1744380571157,0.04303433,1562.7,1562.5,16.202]
[1744380571355,6.44190433,1562.8,1562.5,9.802]
[1744380571657,12.84096433,1562.8,1562.5,9.802]
[1744380571855,6.44190433,1562.8,1562.5,9.802]
[1744380572361,6.3992,1562.7,1562.5,9.802]
[1744380572554,6.44190433,1562.8,1562.5,9.802]
[1744380572555,0.04303433,1562.8,1562.5,16.20177]
[1744380572769,0.04303433,1562.8,1562.5,9.802]
[1744380572974,6.09,1562.9,1562.7,6.39918]
[1744380573137,14.5,1563.0,1562.9,6.39836]
[1744380573341,14.5,1563.0,1562.9,8.01236]
[1744380573550,6.09,1564.2,1563.5,1.614]
[1744380573760,0.04303433,1564.1,1563.9,6.39395]
[1744380573951,14.5,1564.0,1563.7,0.55]
[1744380574149,6.43765433,1563.9,1563.5,51.504]
[1744380574347,6.43734433,1563.9,1563.5,51.504]
[1744380574644,0.64373443,1563.8,1563.5,57.89976]
[1744380574959,6.43734433,1563.9,1563.5,51.504]
[1744380575145,6.39499,1563.8,1563.5,51.504]
[1744380575475,12.83202433,1563.9,1563.5,57.89976]
[1744380575769,6.39469,1563.8,1563.5,57.89976]
[1744380575971,6.43824433,1563.7,1563.5,49.89]
[1744380576187,0.04303433,1563.8,1563.5,56.28578]
[1744380576408,6.43737433,1563.9,1563.5,56.28578]
[1744380576550,6.3948,1563.8,1563.5,56.28578]
[1744380576988,0.04303433,1563.8,1563.5,49.89]
[1744380577168,6.39549,1563.6,1563.4,9.802]
[1744380577478,6.43826433,1563.7,1563.4,9.802]
[1744380577725,12.83364433,1563.7,1563.4,9.802]
[1744380577976,6.39551,1563.6,1563.4,9.802]
[1744380578275,1.32763443,1563.7,1563.4,9.802]
[1744380578473,0.04303433,1563.7,1563.4,22.59426]
[1744380578641,6.43818433,1563.7,1563.4,16.19813]
[1744380578847,6.39574,1563.6,1563.4,9.802]
[1744380579078,0.04303433,1563.5,1563.4,9.802]
[1744380579266,6.43893433,1563.5,1563.4,9.802]
[1744380580175,7.72240176,1563.5,1563.4,9.802]
[1744380580376,13.81240176,1563.5,1563.4,9.802]
[1744380580572,6.09,1563.5,1563.4,9.802]
[1744380580765,6.09,1563.5,1563.4,16.19831]
[1744380581569,6.43828433,1563.7,1563.4,9.802]
[1744380581758,12.79155,1563.6,1563.4,9.802]
[1744380581958,14.5,1563.5,1563.4,9.802]
[1744380582879,14.5,1563.5,1563.4,16.19831]
[1744380583065,14.5,1563.5,1563.4,9.802]
[1744380583248,14.5,1563.5,1563.4,16.19831]
[1744380583453,14.5,1563.5,1563.4,19.484455]
[1744380583860,12.92589,1564.2,1563.8,6.39467]
[1744380584059,6.39411,1564.0,1563.6,12.79079]
[1744380584264,0.04303433,1563.9,1563.6,6.39537]
[1744380584458,14.5,1563.8,1563.7,6.39508]
[1744380585084,6.5327,1564.2,1564.1,6.39345]
[1744380585085,6.09,1564.2,1564.1,6.39345]
[1744380585273,6.43532433,1564.4,1564.0,16.19176]
[1744380585583,6.39345,1564.1,1564.0,9.798]
[1744380585789,6.39396,1564.0,1563.7,1.6217]
[1744380585984,0.04303433,1564.1,1563.8,1.5016]
[1744380586292,6.13303433,1564.2,1563.9,6.39414]
[1744380586517,6.09,1564.2,1564.0,6.39382]
[1744380586690,12.52610433,1564.2,1563.9,6.39414]
[1744380586885,6.13303433,1564.2,1563.9,12.78828]
[1744380587104,14.5,1564.3,1564.1,6.39345]
[1744380587389,14.5,1564.3,1564.2,7.95234]
[1744380589189,6.5327,1564.8,1564.6,6.3912]
[1744380589190,6.09,1564.8,1564.6,6.3912]
[1744380589484,6.43415433,1564.7,1564.4,6.39222]
[1744380589686,12.4799,1565.0,1564.4,6.39208]
[1744380589687,14.5,1564.6,1564.4,6.39208]
[1744380590087,14.5,1564.6,1564.5,6.39181]
[1744380590288,6.83207,1565.1,1564.7,6.39074]
[1744380590504,0.48573433,1565.1,1564.8,6.3903]
[1744380590786,14.5,1565.0,1564.8,12.78087]
[1744380591102,14.5,1565.0,1564.8,12.78078]
[1744380591302,14.5,1565.0,1564.8,6.3903]
[1744380591459,6.09,1565.3,1565.0,6.38966]
[1744380591655,6.09,1565.3,1565.0,12.77929]
[1744380591889,14.5,1565.2,1565.0,12.77929]
[1744380592194,14.5,1565.2,1565.1,7.93636]
[1744380592395,14.5,1565.2,1565.1,9.368956]
[1744380592997,14.5,1565.2,1565.1,2.979596]
[1744380593163,6.3897,1565.1,1564.9,1.502]
[1744380593366,6.43269433,1565.1,1564.7,27.65267092]
[1744380593666,6.43269433,1565.1,1564.7,24.65267092]
[1744380593886,0.04303433,1565.1,1564.8,12.78103]
[1744380594082,14.5,1565.2,1565.0,6.38955]
[1744380594463,14.5,1565.2,1565.0,12.77914]
[1744380594692,14.5,1565.2,1564.9,12.78016]
[1744380595202,14.5,1565.2,1565.1,6.38936]
[1744380595376,14.5,1565.2,1565.1,7.98266]
[1744380595583,14.5,1565.2,1565.1,11.4714207]
[1744380596095,14.5,1565.2,1565.1,11.53530697]
[1744380596465,14.5,1565.2,1565.1,7.98266]
[1744380596665,14.5,1565.2,1565.0,6.38958]
[1744380596901,14.5,1565.2,1564.9,9.193046]
[1744380596902,20.88908,1565.2,1564.9,7.91503]
[1744380597207,0.04303433,1565.1,1564.8,6.39054]
[1744380597498,6.43249433,1565.1,1564.8,6.39054]
[1744380597707,6.43249433,1565.1,1564.7,18.18649092]
[1744380597913,6.43249433,1565.1,1564.7,24.08669]
[1744380598064,6.43249433,1565.1,1564.8,6.39054]
[1744380598720,6.43249433,1565.1,1564.8,12.78097]
[1744380598893,6.43249433,1565.1,1564.8,6.39043]
[1744380599119,14.5,1565.0,1564.7,17.69584]
[1744380599297,14.5,1565.0,1564.8,6.39058]
[1744380599634,14.5,1565.0,1564.8,6.39044]
[1744380599949,6.43354433,1564.9,1564.7,11.3049]
[1744380600106,6.38903,1565.2,1564.8,6.39059]
[1744380600330,0.4927,1565.4,1565.2,6.38895]
[1744380600634,0.05,1565.4,1565.3,6.38855]
[1744380600794,0.05,1565.4,1565.2,22.54657]
[1744380600998,14.5,1565.3,1565.2,22.54656]
[1744380601194,0.05,1565.4,1565.3,1.6619]
[1744380601405,0.05,1565.4,1565.3,11.05045]
[1744380601605,0.05,1565.4,1565.3,60.93931743]
[1744380601821,0.05,1565.4,1565.3,61.42545]
[1744380602231,0.05,1565.4,1565.3,59.76355]
[1744380602430,0.394617,1565.9,1565.8,6.38651]
[1744380602596,0.394617,1565.9,1565.8,16.15451]
[1744380603324,0.394617,1565.9,1565.8,16.70451]
[1744380603728,0.394617,1565.9,1565.8,9.768]
[1744380604044,6.38678,1565.8,1565.4,16.15612]
[1744380604252,6.38678,1565.8,1565.5,6.38771]
[1744380604253,0.04303433,1565.7,1565.5,6.38771]
[1744380604397,6.38712,1565.7,1565.4,9.768]
[1744380604593,6.38699,1565.7,1565.4,9.768]
[1744380604943,6.38718,1565.7,1565.4,9.768]
[1744380605123,0.04303433,1565.8,1565.5,6.38759]
[1744380605445,6.977317,1565.9,1565.5,2.254355]
[1744380605622,12.81639433,1565.8,1565.4,22.54418]
[1744380605817,6.38732,1565.7,1565.4,9.768]
[1744380606001,6.42964433,1565.8,1565.4,9.768]
[1744380606197,0.04303433,1565.8,1565.5,6.38757]
[1744380606431,6.38665,1565.8,1565.5,6.38773]
[1744380606644,13.659797,1565.9,1565.5,6.38758]
[1744380606849,6.42965433,1565.8,1565.5,6.38758]
[1744380607050,7.273507,1565.9,1565.6,6.38711]
[1744380607341,6.42967433,1565.8,1565.5,8.641962]
[1744380607540,0.887317,1565.9,1565.6,6.38694]
[1744380607739,7.31659133,1565.9,1565.6,6.38694]
[1744380608043,0.394617,1565.9,1565.7,6.3867]
[1744380608547,0.04303433,1565.8,1565.7,6.38691]
[1744380608702,6.780867,1565.9,1565.6,6.38717]
[1744380608901,6.42959433,1565.8,1565.5,6.38759]
[1744380609113,0.394617,1565.9,1565.5,6.38759]
[1744380609317,6.42973433,1565.8,1565.4,16.15603]
[1744380609644,6.13303433,1565.8,1565.4,9.768]
[1744380609844,0.5357,1566.8,1566.2,7.92708]
[1744380610043,6.3833,1566.6,1566.3,9.765]
[1744380610209,13.30077,1566.8,1566.3,16.14947]
[1744380610405,0.5357,1566.8,1566.3,16.61649945]
[1744380610628,0.5357,1566.8,1566.3,20.16649945]
[1744380610929,6.91739,1567.0,1566.3,23.61432539]
[1744380611119,0.5357,1567.0,1566.3,23.61432539]
[1744380611327,0.5357,1567.0,1566.3,25.22612539]
[1744380611619,6.38203,1566.9,1566.3,25.22612539]
[1744380611824,6.91766,1567.0,1566.3,25.22612539]
[1744380612025,0.5357,1567.0,1566.3,25.22612539]
[1744380612599,0.5357,1567.3,1566.7,2.0824]
[1744380612832,6.3809,1567.2,1566.8,16.1453]
[1744380613032,6.38178,1567.0,1566.8,9.763]
[1744380613239,6.38202,1566.9,1566.8,9.763]
[1744380614115,6.38245,1566.8,1566.5,6.38365]
[1744380614314,12.76521,1566.8,1566.4,17.7555]
[1744380614550,6.38311,1566.7,1566.4,9.76]
[1744380614747,6.38248,1566.8,1566.4,9.76]
[1744380614748,6.38248,1566.8,1566.4,16.14382]
[1744380614953,6.38248,1566.8,1566.4,22.52774]
[1744380615356,13.29993,1566.9,1566.5,6.38358]
[1744380615535,6.38302,1566.7,1566.4,16.14393]
[1744380615774,6.38352,1566.6,1566.4,9.76]
[1744380615917,6.38258,1566.8,1566.4,16.14385]
[1744380616122,6.38296,1566.7,1566.4,16.14385]
[1744380616347,6.38296,1566.7,1566.4,9.76]
[1744380616528,6.38296,1566.7,1566.4,16.1439]
[1744380617128,12.76598,1566.7,1566.4,9.76]
[1744380617328,6.38351,1566.6,1566.4,9.76]
[1744380617768,6.38365,1566.5,1566.4,9.76]
[1744380617930,6.38422,1566.4,1566.1,60.56777634]
[1744380618133,12.76854,1566.4,1566.1,49.803]
[1744380618367,6.38481,1566.3,1566.1,49.803]
[1744380618549,6.38413,1566.4,1566.1,49.803]
[1744380618752,6.3846,1566.3,1566.1,49.803]
[1744380619051,6.38411,1566.4,1566.1,49.803]
[1744380619219,6.38411,1566.4,1566.1,56.18821]
[1744380619422,6.38462,1566.3,1566.1,49.803]
[1744380619834,6.38415,1566.4,1566.1,49.803]
[1744380620038,0.5357,1566.5,1566.1,49.803]
[1744380620250,6.38421,1566.4,1566.1,49.803]
[1744380620566,6.91945,1566.5,1566.1,62.57329]
[1744380620720,6.91945,1566.5,1566.1,56.18813]
[1744380620920,6.38418,1566.4,1566.1,56.18813]
[1744380621152,13.30332,1566.5,1566.2,6.38483]
[1744380621357,6.38408,1566.4,1566.1,56.18813]
[1744380621669,13.3033,1566.5,1566.2,6.38475]
[1744380621822,13.30339,1566.5,1566.2,6.38475]
[1744380622023,2.475039,1566.5,1566.1,49.803]